bitfinex/quotes_BTCUSD_20220205
["timestamp","ask_amount","ask_price","bid_price","bid_amount"]
[1644074788423,0.05,41657.0,41653.0,0.01799457]
[1644074788627,0.05,41657.0,41653.0,0.01738457]
[1644074789025,0.06002738,41656.0,41653.0,0.01738457]
[1644074789228,0.1,41668.0,41661.0,0.06571728]
[1644074789428,0.002,41672.0,41661.0,0.06571728]
[1644074789625,0.002,41672.0,41654.0,0.07815]
[1644074789827,0.05,41671.0,41655.0,0.35421501]
[1644074790224,0.24484826,41666.0,41655.0,0.35421501]
[1644074790826,0.23825339,41661.0,41655.0,0.35421501]
[1644074791025,0.23825339,41661.0,41655.0,0.35371501]
[1644074792278,0.23825339,41661.0,41655.0,0.30371501]
[1644074795427,0.11815188,41671.0,41662.0,0.0670025]
[1644074795428,0.01815188,41671.0,41662.0,0.0670025]
[1644074795628,0.01815188,41671.0,41663.0,0.3]
[1644074795827,0.01815188,41671.0,41663.0,0.14664]
[1644074796228,0.28599414,41682.0,41663.0,0.14664]
[1644074796427,0.01853434,41682.0,41663.0,0.14664]
[1644074796633,0.01853434,41682.0,41665.0,0.06635647]
[1644074796830,0.05,41676.0,41666.0,0.044]
[1644074797028,0.01853434,41682.0,41666.0,0.044]
[1644074797029,0.05,41680.0,41666.0,0.044]
[1644074797229,0.088,41665.0,41658.0,0.3]
[1644074797528,0.138,41665.0,41656.0,0.02191124]
[1644074797728,0.088,41665.0,41656.0,0.02191124]
[1644074798128,0.25869207,41663.0,41656.0,0.02191124]
[1644074798327,0.25869207,41663.0,41654.0,0.37815]
[1644074798528,0.25869207,41663.0,41654.0,0.07815]
[1644074798727,0.23681075,41661.0,41654.0,0.12815]
[1644074798975,0.25869207,41663.0,41654.0,0.12815]
[1644074799374,0.25869207,41663.0,41655.0,0.060005]
[1644074800076,0.27672887,41661.0,41654.0,0.07815]
[1644074800275,0.27672887,41661.0,41653.0,0.4379973]
[1644074800677,0.27672887,41661.0,41653.0,0.05]
[1644074800879,0.27672887,41661.0,41650.0,0.30447794]
[1644074801077,0.27340504,41661.0,41650.0,0.30447794]
[1644074801578,0.27340504,41661.0,41650.0,0.07510229]
[1644074802176,0.27340504,41661.0,41650.0,0.12510229]
[1644074803428,0.27340504,41661.0,41652.0,0.060007]
[1644074805331,0.27340504,41661.0,41650.0,0.12510229]
[1644074806777,0.3187035,41663.0,41650.0,0.12510229]
[1644074807579,0.06001143,41663.0,41657.0,0.06447555]
[1644074807781,0.088,41665.0,41657.0,0.06447555]
[1644074808581,0.088,41665.0,41664.0,0.08632055]
[1644074808784,0.088,41665.0,41664.0,0.14630855]
[1644074808980,0.088,41665.0,41664.0,0.19630855]
[1644074809880,0.088,41665.0,41664.0,0.49259838]
[1644074810329,0.088,41665.0,41664.0,0.59259838]
[1644074814179,0.088,41665.0,41664.0,0.64259838]
[1644074814879,0.088,41665.0,41664.0,0.68659838]
[1644074817079,0.088,41665.0,41664.0,0.68359838]
[1644074817478,0.088,41665.0,41664.0,0.68059838]
[1644074817751,0.088,41665.0,41664.0,0.67759838]
[1644074817948,0.01915195,41678.0,41664.0,0.67759838]
[1644074818148,0.01915195,41678.0,41667.0,0.20342136]
[1644074818449,0.01827982,41678.0,41669.0,0.173907]
[1644074818647,0.01827982,41678.0,41670.0,0.12173566]
[1644074818846,0.01827982,41678.0,41671.0,0.30586008]
[1644074819047,0.0001,41672.0,41671.0,0.30286008]
[1644074819247,0.0001,41672.0,41671.0,0.54686008]
[1644074821147,0.0001,41672.0,41671.0,0.39686008]
[1644074821347,0.0001,41672.0,41671.0,0.194]
[1644074821579,0.0001,41672.0,41669.0,0.059969]
[1644074821780,0.0001,41672.0,41665.0,0.14799]
[1644074821978,0.0001,41672.0,41665.0,0.14769]
[1644074822178,0.2002786,41672.0,41665.0,0.14709]
[1644074822482,0.24945152,41670.0,41665.0,0.14679]
[1644074822680,0.24945152,41670.0,41665.0,0.0865]
[1644074823177,0.24945152,41670.0,41665.0,0.0859]
[1644074823376,0.24945152,41670.0,41665.0,0.0856]
[1644074823577,0.24945152,41670.0,41661.0,0.059994]
[1644074823779,0.29945152,41670.0,41659.0,0.02168855]
[1644074823980,0.35945044,41670.0,41659.0,0.02138855]
[1644074824479,0.27837828,41660.0,41654.0,0.12]
[1644074824680,0.27837828,41660.0,41653.0,0.01942276]
[1644074824880,0.27837828,41660.0,41653.0,0.01912276]
[1644074825085,0.27837828,41660.0,41653.0,0.01882276]
[1644074825628,0.27837828,41660.0,41654.0,0.060005]
[1644074825830,0.27837828,41660.0,41653.0,0.01852276]
[1644074826030,0.0001,41672.0,41658.0,0.06556775]
[1644074826230,0.0001,41672.0,41659.0,0.3]
[1644074826428,0.0001,41672.0,41658.0,0.06556775]
[1644074826429,0.0001,41672.0,41658.0,0.36526775]
[1644074826632,0.019371,41666.0,41658.0,0.36526775]
[1644074826831,0.019371,41666.0,41658.0,0.06496775]
[1644074827031,0.019371,41666.0,41658.0,0.15896775]
[1644074827032,0.24073351,41666.0,41658.0,0.15896775]
[1644074827232,0.24073351,41666.0,41662.0,0.059687]
[1644074827435,0.24073351,41666.0,41662.0,0.059387]
[1644074827735,0.24073351,41666.0,41662.0,0.058787]
[1644074827931,0.019371,41666.0,41662.0,0.058787]
[1644074828131,0.019371,41666.0,41662.0,0.058487]
[1644074828332,0.019371,41666.0,41662.0,0.058187]
[1644074828531,0.19467052,41671.0,41662.0,0.057887]
[1644074828979,0.26124204,41667.0,41662.0,0.057887]
[1644074829979,0.19467052,41671.0,41662.0,0.057887]
[1644074830582,0.0001,41672.0,41662.0,0.33730396]
[1644074830780,0.0001,41672.0,41667.0,0.08317678]
[1644074830983,0.0001,41672.0,41668.0,0.34795364]
[1644074831186,0.0001,41672.0,41668.0,0.49795364]
[1644074831384,0.0001,41672.0,41668.0,0.59195364]
[1644074831586,0.0001,41672.0,41668.0,0.66973364]
[1644074831784,0.0001,41672.0,41669.0,0.10996302]
[1644074832084,0.0001,41672.0,41670.0,0.094]
[1644074832285,0.0001,41672.0,41671.0,0.29415916]
[1644074832735,0.0001,41672.0,41671.0,0.38815916]
[1644074832932,0.0001,41672.0,41671.0,0.48815916]
[1644074834430,0.0682823,41685.0,41672.0,0.7]
[1644074834631,0.06846133,41685.0,41675.0,0.059973]
[1644074835229,0.25916377,41679.0,41675.0,0.059973]
[1644074836677,0.25916377,41679.0,41674.0,0.119945]
[1644074837078,0.25916377,41679.0,41670.0,0.119959]
[1644074837380,0.30916377,41679.0,41670.0,0.119959]
[1644074837577,0.05,41679.0,41670.0,0.119959]
[1644074838378,0.10998597,41679.0,41670.0,0.119959]
[1644074838576,0.23490108,41674.0,41670.0,0.119959]
[1644074841229,0.23490108,41674.0,41670.0,0.169959]
[1644074841432,0.05,41679.0,41670.0,0.169959]
[1644074841828,0.05,41679.0,41671.0,0.27947526]
[1644074842328,0.25292911,41676.0,41671.0,0.27947526]
[1644074842529,0.25292911,41676.0,41670.0,0.269959]
[1644074843127,0.23951839,41676.0,41670.0,0.269959]
[1644074843331,0.23951839,41676.0,41670.0,0.169959]
[1644074843530,0.23951839,41676.0,41673.0,0.059979]
[1644074843984,0.23451839,41676.0,41673.0,0.059979]
[1644074844174,0.23451839,41676.0,41670.0,0.119959]
[1644074845176,0.23451839,41676.0,41673.0,0.059979]
[1644074845574,0.24716193,41679.0,41673.0,0.059979]
[1644074846576,0.27692807,41677.0,41673.0,0.059979]
[1644074848727,0.05,41679.0,41673.0,0.059979]
[1644074848926,0.05,41679.0,41673.0,0.119958]
[1644074849128,0.05,41679.0,41675.0,0.119957]
[1644074849629,0.20862369,41683.0,41676.0,0.31125833]
[1644074850428,0.20862369,41683.0,41676.0,0.36125833]
[1644074850629,0.20862369,41683.0,41678.0,0.059966]
[1644074850830,0.20862369,41683.0,41679.0,0.3525694]
[1644074851034,0.20862369,41683.0,41679.0,0.4025694]
[1644074851230,0.20862369,41683.0,41682.0,0.06521609]
[1644074851484,0.20862369,41683.0,41682.0,0.35698355]
[1644074851679,0.001,41690.0,41683.0,0.7]
[1644074851879,0.001,41690.0,41684.0,0.179845]
[1644074852078,0.001,41690.0,41685.0,0.32225438]
[1644074852283,0.001,41690.0,41685.0,0.37225438]
[1644074852479,0.001,41690.0,41685.0,0.73596438]
[1644074852681,0.001,41690.0,41685.0,0.73530438]
[1644074852880,0.001,41695.0,41686.0,0.759945]
[1644074853080,0.001,41695.0,41687.0,0.30170297]
[1644074853281,0.001,41695.0,41688.0,0.7]
[1644074853481,0.001,41695.0,41692.0,0.20090771]
[1644074853683,0.001,41695.0,41693.0,0.044]
[1644074854481,0.001,41695.0,41693.0,0.38527161]
[1644074854682,0.001,41695.0,41693.0,0.103944]
[1644074854882,0.001,41695.0,41693.0,0.203944]
[1644074855932,0.001,41695.0,41693.0,0.103944]
[1644074856932,0.001,41695.0,41693.0,0.059944]
[1644074856933,0.05,41694.0,41693.0,0.059944]
[1644074857132,0.26275583,41692.0,41686.0,0.119918]
[1644074857332,0.001,41695.0,41684.0,0.03277]
[1644074857731,0.05,41690.0,41684.0,0.03277]
[1644074858231,0.05,41690.0,41688.0,0.059964]
[1644074858632,0.001,41695.0,41688.0,0.059964]
[1644074858831,0.05,41693.0,41688.0,0.059964]
[1644074859278,0.001,41695.0,41688.0,0.059964]
[1644074859480,0.001,41695.0,41688.0,0.109964]
[1644074859978,0.001,41695.0,41691.0,0.059949]
[1644074860979,0.001,41695.0,41691.0,0.169898]
[1644074861180,0.001,41695.0,41692.0,0.044]
[1644074862833,0.001,41695.0,41692.0,0.38940202]
[1644074863032,0.001,41695.0,41692.0,0.044]
[1644074863932,0.001,41695.0,41693.0,0.27972565]
[1644074864135,0.001,41695.0,41694.0,0.044]
[1644074865033,0.001,41695.0,41694.0,0.31782096]
[1644074865233,0.001,41695.0,41694.0,0.36782096]
[1644074865431,0.001,41695.0,41694.0,0.31782096]
[1644074865634,0.001,41695.0,41694.0,0.044]
[1644074866231,0.001,41695.0,41694.0,0.094]
[1644074867279,0.001,41695.0,41694.0,0.36642647]
[1644074867480,0.001,41695.0,41694.0,0.46642647]
[1644074867685,0.001,41703.0,41696.0,0.759937]
[1644074867882,0.001,41703.0,41697.0,0.744]
[1644074868082,0.001,41703.0,41697.0,0.844]
[1644074868282,0.004,41707.0,41706.0,0.08774193]
[1644074868883,0.004,41707.0,41706.0,0.13174193]
[1644074869580,0.004,41707.0,41706.0,0.41702603]
[1644074869780,0.004,41707.0,41706.0,0.51702603]
[1644074870229,0.004,41707.0,41706.0,0.4292841]
[1644074870430,0.004,41707.0,41706.0,0.144]
[1644074870630,0.054,41707.0,41706.0,0.144]
[1644074870830,0.004,41707.0,41706.0,0.144]
[1644074871033,0.004,41707.0,41706.0,0.044]
[1644074871941,0.054,41707.0,41705.0,0.059918]
[1644074872331,0.054,41707.0,41704.0,0.119835]
[1644074873131,0.054,41707.0,41702.0,0.059942]
[1644074873330,0.05,41703.0,41702.0,0.059942]
[1644074873531,0.05,41703.0,41698.0,0.119881]
[1644074873732,0.05,41699.0,41693.0,0.229811]
[1644074873983,0.05,41694.0,41693.0,0.179811]
[1644074874977,0.05,41694.0,41692.0,0.059954]
[1644074876180,0.01883458,41703.0,41693.0,0.27644592]
[1644074876379,0.02088246,41699.0,41693.0,0.27839947]
[1644074876579,0.02088246,41699.0,41695.0,0.12833851]
[1644074876778,0.02088246,41699.0,41696.0,0.28152687]
[1644074876978,0.02088246,41699.0,41695.0,0.12833851]
[1644074877377,0.02088246,41699.0,41695.0,0.059939]
[1644074877834,0.02088246,41699.0,41695.0,0.33648927]
[1644074878034,0.02088246,41699.0,41695.0,0.059939]
[1644074878233,0.02088246,41699.0,41695.0,0.159939]
[1644074878733,0.02088246,41699.0,41696.0,0.27932098]
[1644074878933,0.02088246,41699.0,41696.0,0.38925498]
[1644074879135,0.05,41701.0,41696.0,0.38925498]
[1644074879334,0.05,41701.0,41696.0,0.48925498]
[1644074879534,0.05,41701.0,41700.0,0.05993]
[1644074879933,0.05,41701.0,41700.0,0.34261891]
[1644074880135,0.0184039,41703.0,41700.0,0.34261891]
[1644074880338,0.0184039,41703.0,41701.0,0.3]
[1644074880537,0.0184039,41703.0,41701.0,0.044]
[1644074880838,0.02078283,41706.0,41705.0,0.06637345]
[1644074881137,0.02078283,41706.0,41705.0,0.12629445]
[1644074881779,0.02078283,41706.0,41705.0,0.22029445]
[1644074881982,0.02078283,41706.0,41705.0,0.153921]
[1644074882181,0.07078283,41706.0,41705.0,0.103921]
[1644074882387,0.07078283,41706.0,41705.0,0.044]
[1644074882582,0.05,41706.0,41705.0,0.044]
[1644074883882,0.004,41707.0,41705.0,0.044]
[1644074884484,0.004,41707.0,41705.0,0.32027978]
[1644074884890,0.004,41707.0,41706.0,0.27604895]
[1644074886331,0.004,41707.0,41705.0,0.194]
[1644074886631,0.004,41707.0,41705.0,0.044]
[1644074887233,0.05,41706.0,41705.0,0.044]
[1644074888636,0.05,41706.0,41704.0,0.119842]
[1644074888835,0.05,41706.0,41699.0,0.219876]
[1644074889081,0.05,41702.0,41699.0,0.219876]
[1644074889386,0.05,41702.0,41700.0,0.05]
[1644074890280,0.05,41702.0,41699.0,0.119876]
[1644074890681,0.05,41702.0,41696.0,0.119884]
[1644074890884,0.05,41699.0,41696.0,0.119884]
[1644074891483,0.05,41699.0,41693.0,0.119893]
[1644074891693,0.05,41699.0,41682.0,6e-05]
[1644074891694,0.05,41694.0,41682.0,0.35]
[1644074891885,0.05,41686.0,41683.0,0.5]
[1644074892930,0.05,41686.0,41683.0,0.619921]
[1644074893129,0.04992473,41686.0,41683.0,0.619921]
[1644074893332,0.26483461,41690.0,41683.0,0.619921]
[1644074893533,0.04992473,41686.0,41684.0,0.05]
[1644074893932,0.04992473,41690.0,41684.0,0.05]
[1644074894533,0.04992473,41685.0,41683.0,0.119921]
[1644074896033,0.04992473,41685.0,41681.0,0.119925]
[1644074896236,0.04992473,41682.0,41681.0,0.119925]
[1644074896488,0.04992473,41682.0,41669.0,0.4952]
[1644074896683,0.04992473,41671.0,41666.0,0.1223]
[1644074896982,0.25483657,41676.0,41665.0,0.29415467]
[1644074896983,0.1903906,41674.0,41665.0,0.29415467]
[1644074897185,0.04992473,41666.0,41661.0,0.20379021]
[1644074897384,0.25483657,41676.0,41665.0,0.119969]
[1644074897586,0.04992473,41666.0,41658.0,0.3]
[1644074897783,0.04992473,41662.0,41657.0,0.3]
[1644074897986,0.04992473,41664.0,41660.0,0.08046461]
[1644074898186,0.04992473,41664.0,41660.0,0.14045861]
[1644074898581,0.04992473,41664.0,41660.0,0.059994]
[1644074899182,0.04992473,41664.0,41658.0,0.3]
[1644074899183,0.02147388,41674.0,41658.0,0.3]
[1644074899581,0.04992473,41659.0,41658.0,0.3]
[1644074899784,0.04992473,41659.0,41657.0,0.119984]
[1644074900333,0.04992473,41659.0,41656.0,2.60734097]
[1644074905083,0.04992473,41659.0,41656.0,2.66734497]
[1644074905689,0.3854,41670.0,41665.0,0.07919478]
[1644074905885,0.01833162,41672.0,41665.0,0.07919478]
[1644074905886,0.04992473,41671.0,41665.0,0.07919478]
[1644074906083,0.01833162,41672.0,41665.0,0.07919478]
[1644074906084,0.01833162,41672.0,41667.0,0.059988]
[1644074906886,0.04992473,41673.0,41667.0,0.059988]
[1644074907088,0.04992473,41673.0,41668.0,0.048]
[1644074907390,0.04992473,41673.0,41668.0,0.098]
[1644074909636,0.04992473,41678.0,41676.0,0.08076145]
[1644074909838,0.01874992,41684.0,41677.0,0.048]
[1644074911036,0.04992473,41678.0,41677.0,0.048]
[1644074911238,0.04992473,41678.0,41676.0,0.119923]
[1644074911687,0.04992473,41678.0,41668.0,0.27991]
[1644074911986,0.04992473,41674.0,41668.0,0.17991]
[1644074912186,0.04992473,41674.0,41669.0,0.059982]
[1644074914785,0.04992473,41674.0,41670.0,0.08001288]
[1644074914989,0.04992473,41677.0,41672.0,0.059971]
[1644074915433,0.04992473,41680.0,41672.0,0.059971]
[1644074915632,0.01819918,41685.0,41683.0,0.07771656]
[1644074916036,0.01819918,41685.0,41684.0,0.059952]
[1644074916830,0.04992473,41687.0,41684.0,0.059952]
[1644074917034,0.04992473,41687.0,41684.0,0.39043495]
[1644074917334,0.001,41689.0,41684.0,0.49043495]
[1644074918995,0.04992473,41687.0,41684.0,0.059952]
[1644074919191,0.25263203,41686.0,41682.0,0.0442]
[1644074919589,0.04992473,41683.0,41682.0,0.0442]
[1644074920488,0.04984156,41683.0,41679.0,0.119929]
[1644074920688,0.21621384,41685.0,41679.0,0.119929]
[1644074920889,0.04984156,41684.0,41679.0,0.119929]
[1644074921288,0.04984156,41684.0,41680.0,0.27494288]
[1644074921489,0.04984156,41684.0,41680.0,0.35357682]
[1644074921889,0.01886543,41688.0,41680.0,0.45357682]
[1644074922089,0.04984156,41687.0,41680.0,0.45357682]
[1644074922290,0.04984156,41687.0,41680.0,0.50357682]
[1644074922730,0.04984156,41687.0,41680.0,0.55357682]
[1644074922930,0.001,41689.0,41680.0,0.55357682]
[1644074923330,0.001,41689.0,41681.0,0.059964]
[1644074923530,0.04984156,41686.0,41681.0,0.059964]
[1644074924833,0.07146608,41689.0,41681.0,0.059964]
[1644074926034,0.02162452,41689.0,41681.0,0.059964]
[1644074927304,0.02162452,41689.0,41681.0,0.32153732]
[1644074927504,0.001,41689.0,41685.0,0.059955]
[1644074927705,0.001,41689.0,41686.0,0.33714031]
[1644074929206,0.001,41689.0,41686.0,0.51698531]
[1644074929405,0.001,41689.0,41687.0,0.06757988]
[1644074929606,0.001,41689.0,41688.0,0.31351856]
[1644074929806,0.01895094,41694.0,41689.0,0.759939]
[1644074930007,0.01895094,41694.0,41692.0,0.06009744]
[1644074930237,0.01895094,41694.0,41693.0,0.29494485]
[1644074930938,0.01942199,41699.0,41696.0,0.08202777]
[1644074931138,0.01942199,41699.0,41698.0,0.059938]
[1644074932037,0.00469299,41699.0,41698.0,0.059938]
[1644074932337,0.00469299,41699.0,41698.0,0.074667]
[1644074932739,0.00469299,41699.0,41698.0,0.34900455]
[1644074933138,0.00469299,41699.0,41698.0,0.44900455]
[1644074934988,0.00469299,41699.0,41698.0,0.074667]
[1644074936888,0.04984156,41701.0,41698.0,0.059938]
[1644074941342,0.04984156,41701.0,41700.0,0.0023836]
[1644074943790,0.0047672,41699.0,41698.0,0.059938]
[1644074943993,0.04984156,41701.0,41697.0,0.119876]
[1644074944191,0.04984156,41698.0,41697.0,0.119876]
[1644074944599,0.3403376,41698.0,41693.0,0.119904]
[1644074944893,0.3403376,41698.0,41681.0,0.07197385]
[1644074944894,0.29991467,41694.0,41681.0,0.07197385]
[1644074945093,0.04984156,41689.0,41684.0,0.059963]
[1644074946340,0.04984156,41690.0,41684.0,0.059963]
[1644074947146,0.01854314,41692.0,41684.0,0.059963]
[1644074947343,0.01854314,41692.0,41681.0,0.059968]
[1644074947344,0.04984156,41687.0,41681.0,0.059968]
[1644074947542,0.01854314,41692.0,41683.0,0.00015844]
[1644074947745,0.04984156,41690.0,41681.0,0.00015844]
[1644074948144,0.31133952,41690.0,41681.0,0.08385229]
[1644074948343,0.31133952,41690.0,41685.0,0.05996]
[1644074948545,0.04984156,41686.0,41685.0,0.05996]
[1644074948845,0.26149796,41690.0,41685.0,0.05996]
[1644074948846,0.0707038,41690.0,41685.0,0.05996]
[1644074949099,0.02086224,41690.0,41689.0,0.00015844]
[1644074949500,0.01510224,41690.0,41689.0,0.13602278]
[1644074949896,0.01510224,41690.0,41689.0,0.23602278]
[1644074950900,0.01823849,41695.0,41689.0,0.23602278]
[1644074952207,0.01823849,41695.0,41692.0,0.00015844]
[1644074952405,0.002,41702.0,41701.0,0.06743632]
[1644074952739,0.002,41702.0,41701.0,0.06759476]
[1644074953840,0.004,41707.0,41702.0,0.7]
[1644074954039,0.004,41707.0,41706.0,0.00015844]
[1644074954241,0.004,41707.0,41706.0,0.04435844]
[1644074954846,0.02442721,41708.0,41706.0,0.00015844]
[1644074955048,0.04984156,41726.0,41709.0,0.76332044]
[1644074955245,0.04984156,41726.0,41718.0,0.00015844]
[1644074955642,0.003,41724.0,41718.0,0.04435844]
[1644074957094,0.002,41720.0,41719.0,0.7]
[1644074957294,0.002,41720.0,41719.0,1.20457661]
[1644074957496,0.002,41720.0,41719.0,1.4076344]
[1644074957793,0.002,41720.0,41719.0,1.20457661]
[1644074958494,0.002,41720.0,41719.0,0.1942]
[1644074958693,0.002,41720.0,41719.0,0.0442]
[1644074959095,0.002,41720.0,41716.0,0.119819]
[1644074959393,0.05184156,41720.0,41716.0,0.119819]
[1644074960003,0.04984156,41719.0,41716.0,0.119819]
[1644074960650,0.28193171,41718.0,41712.0,0.119844]
[1644074960846,0.28193171,41718.0,41709.0,0.119849]
[1644074961046,0.04984156,41710.0,41709.0,0.119849]
[1644074961647,0.30580995,41710.0,41709.0,0.119849]
[1644074961845,0.04984156,41710.0,41709.0,0.119849]
[1644074963646,0.04984156,41710.0,41709.0,0.11951701]
[1644074964290,0.3342577,41710.0,41708.0,0.05039]
[1644074964492,0.33478835,41710.0,41708.0,0.05039]
[1644074964689,0.33773312,41710.0,41708.0,0.05039]
[1644074964891,0.2839652,41709.0,41708.0,0.05039]
[1644074965089,0.04984156,41710.0,41708.0,0.110329]
[1644074966393,0.04984156,41713.0,41711.0,0.05993]
[1644074966593,0.002,41720.0,41715.0,0.18872224]
[1644074967192,0.002,41720.0,41716.0,0.27561586]
[1644074967591,0.002,41720.0,41716.0,0.27484326]
[1644074967841,0.002,41720.0,41716.0,0.27653427]
[1644074968038,0.002,41720.0,41719.0,0.00015844]
[1644074968439,0.002,41720.0,41719.0,0.0442]
[1644074969739,0.002,41720.0,41719.0,0.04435844]
[1644074969941,0.002,41720.0,41719.0,0.0442]
[1644074970140,0.05184156,41720.0,41719.0,0.0442]
[1644074970944,0.05184156,41720.0,41716.0,0.119825]
[1644074970945,0.05184156,41720.0,41716.0,0.059913]
[1644074971142,0.002,41720.0,41716.0,0.059913]
[1644074971341,0.04984156,41717.0,41716.0,0.059913]
[1644074972198,0.00136402,41719.0,41716.0,0.109913]
[1644074972496,0.00136402,41719.0,41718.0,0.00015844]
[1644074972697,0.002,41720.0,41719.0,0.6]
[1644074972899,0.002,41720.0,41719.0,0.87658016]
[1644074973096,0.003,41723.0,41719.0,0.87658016]
[1644074973097,0.003,41723.0,41720.0,0.35]
[1644074973298,0.003,41723.0,41721.0,0.059904]
[1644074973697,0.003,41723.0,41721.0,0.1198082]
[1644074974197,0.003,41723.0,41721.0,0.1148082]
[1644074974498,0.003,41723.0,41721.0,0.18973059]
[1644074974901,0.003,41723.0,41721.0,0.1148082]
[1644074975342,0.003,41723.0,41721.0,0.059904]
[1644074977747,0.22657705,41722.0,41721.0,0.059904]
[1644074978152,0.22657705,41722.0,41721.0,0.058207]
[1644074978349,0.35,41721.0,41715.0,0.119837]
[1644074978550,0.29380329,41720.0,41715.0,0.119837]
[1644074978747,0.04984156,41716.0,41715.0,0.119837]
[1644074981492,0.003,41723.0,41717.0,0.08698574]
[1644074981891,0.00112386,41725.0,41718.0,0.7]
[1644074982091,0.00112386,41725.0,41717.0,0.13698574]
[1644074982293,0.00112386,41725.0,41718.0,0.059905]
[1644074982740,0.04984156,41724.0,41719.0,0.119805]
[1644074984444,0.04984156,41722.0,41719.0,0.119805]
[1644074985044,0.03984156,41720.0,41719.0,0.119805]
[1644074987593,0.03984156,41724.0,41722.0,0.06837461]
[1644074987794,0.03984156,41724.0,41722.0,0.059899]
[1644074988192,0.26852119,41724.0,41722.0,0.059899]
[1644074988397,0.29027513,41724.0,41722.0,0.059899]
[1644074988593,0.03984156,41724.0,41722.0,0.059899]
[1644074988894,0.03984156,41724.0,41723.0,0.059899]
[1644074992553,0.00112386,41725.0,41723.0,0.059899]
[1644074993560,0.20459193,41724.0,41723.0,0.059899]
[1644074995803,0.20459193,41724.0,41723.0,0.07005744]
[1644074997402,0.20459193,41724.0,41723.0,0.059899]
[1644074998038,0.24443349,41724.0,41723.0,0.059899]
[1644074998439,0.20459193,41724.0,41723.0,0.059899]
[1644074999140,0.50459193,41724.0,41723.0,0.059899]
[1644074999346,0.50459193,41724.0,41716.0,0.119825]
[1644074999347,0.83682293,41724.0,41716.0,0.119825]
[1644074999541,0.55459193,41724.0,41710.0,0.07819795]
[1644074999742,0.03984156,41716.0,41710.0,0.02819795]
[1644075000341,0.27804366,41716.0,41710.0,0.02819795]
[1644075000542,0.03984156,41713.0,41710.0,0.14804095]
[1644075001593,0.03984156,41716.0,41710.0,0.14804095]
[1644075001793,0.28063604,41715.0,41710.0,0.13000144]
[1644075001996,0.03984156,41711.0,41710.0,0.13000144]
[1644075002192,0.03984156,41711.0,41710.0,0.119843]
[1644075002591,0.03736959,41711.0,41710.0,0.119843]
[1644075003194,0.30198248,41711.0,41710.0,0.119843]
[1644075003800,0.03736959,41711.0,41710.0,0.119843]
[1644075005749,0.03736959,41721.0,41719.0,0.0818527]
[1644075005948,0.03736959,41721.0,41719.0,0.01263041]
[1644075006546,0.29373488,41721.0,41719.0,0.01263041]
[1644075006746,0.03736959,41721.0,41719.0,0.01263041]
[1644075007349,0.03736959,41721.0,41720.0,0.07253541]
[1644075007949,0.03736959,41721.0,41720.0,0.05795121]
[1644075008147,0.03736959,41721.0,41720.0,0.07058162]
[1644075008346,0.00931355,41722.0,41720.0,0.07058162]
[1644075008746,0.21647196,41725.0,41720.0,0.07058162]
[1644075009002,0.03736959,41724.0,41722.0,0.0190858]
[1644075009195,0.03736959,41724.0,41723.0,0.059907]
[1644075009396,0.03736959,41724.0,41719.0,0.11981]
[1644075010294,0.03736959,41722.0,41719.0,0.11981]
[1644075010494,0.03736959,41722.0,41716.0,0.05992]
[1644075011895,0.05991703,41724.0,41716.0,0.05992]
[1644075012095,0.21647196,41725.0,41716.0,0.05992]
[1644075012096,0.03736959,41718.0,41716.0,0.05992]
[1644075012497,0.03736959,41718.0,41714.0,0.119835]
[1644075013352,0.21647196,41725.0,41714.0,0.11815099]
[1644075013652,0.21647196,41725.0,41714.0,0.11663099]
[1644075013653,0.03736959,41721.0,41714.0,0.11663099]
[1644075013853,0.03736959,41721.0,41716.0,0.059913]
[1644075014253,0.03736959,41721.0,41718.0,0.13244541]
[1644075015056,0.03736959,41721.0,41719.0,0.01263041]
[1644075015256,0.03736959,41721.0,41719.0,0.07253841]
[1644075015456,0.03736959,41721.0,41719.0,0.13244641]
[1644075015857,0.00112386,41725.0,41719.0,0.13244641]
[1644075016057,0.03736959,41722.0,41719.0,0.4073882]
[1644075016259,0.00112386,41725.0,41719.0,0.5073882]
[1644075016503,0.00112386,41725.0,41724.0,0.14829806]
[1644075016702,0.001,41727.0,41724.0,0.29629806]
[1644075016895,0.001,41727.0,41725.0,0.7]
[1644075017195,0.001,41727.0,41726.0,0.048]
[1644075017597,0.001,41727.0,41726.0,0.348]
[1644075017797,0.001,41727.0,41726.0,0.148]
[1644075018197,0.001,41728.0,41726.0,0.148]
[1644075018397,0.001,41728.0,41727.0,0.01263041]
[1644075018595,0.001,41728.0,41727.0,0.36948905]
[1644075018795,0.001,41728.0,41727.0,0.46948905]
[1644075019898,0.012,41729.0,41727.0,0.46948905]
[1644075020101,0.012,41729.0,41728.0,0.29323995]
[1644075020349,0.012,41729.0,41728.0,0.34123995]
[1644075020748,0.001,41733.0,41729.0,0.7]
[1644075020948,0.001,41733.0,41730.0,0.35051352]
[1644075021350,0.001,41733.0,41730.0,0.45051352]
[1644075021548,0.001,41733.0,41730.0,0.50051352]
[1644075021754,0.001,41733.0,41730.0,0.159886]
[1644075021949,0.001,41733.0,41730.0,0.059886]
[1644075022149,0.03836959,41732.0,41730.0,0.059886]
[1644075022349,0.001,41732.0,41730.0,0.059886]
[1644075023250,0.03836959,41732.0,41730.0,0.059886]
[1644075023450,0.001,41732.0,41730.0,0.059886]
[1644075024094,0.03836959,41732.0,41730.0,0.059886]
[1644075024299,0.03836959,41732.0,41729.0,0.119771]
[1644075024497,0.03836959,41732.0,41726.0,0.059907]
[1644075024694,0.03736959,41727.0,41724.0,0.119808]
[1644075026595,0.03736959,41727.0,41725.0,0.01263041]
[1644075026798,0.03736959,41730.0,41726.0,0.119794]
[1644075027600,0.03736959,41730.0,41726.0,0.119283]
[1644075028645,0.03736959,41730.0,41728.0,0.119786]
[1644075029645,0.001,41731.0,41728.0,0.119786]
[1644075029845,0.001,41731.0,41728.0,0.179677]